bitfinex/quotes_SOLUSD_20230104
["timestamp","ask_amount","ask_price","bid_price","bid_amount"]
[1672840474564,20.0,13.547,13.534,30.0]
[1672840474770,20.0,13.548,13.534,30.0]
[1672840474985,55.41,13.547,13.534,30.0]
[1672840475202,20.0,13.546,13.534,30.0]
[1672840475826,20.0,13.547,13.534,87.05822556]
[1672840476453,55.42,13.546,13.534,87.05822556]
[1672840476874,20.0,13.547,13.534,87.05822556]
[1672840477087,55.42,13.546,13.534,87.05822556]
[1672840477302,55.41,13.547,13.54,312.0]
[1672840477515,75.41,13.548,13.54,312.0]
[1672840477724,20.0,13.546,13.54,312.0]
[1672840477922,75.41,13.548,13.54,312.0]
[1672840478142,75.41,13.548,13.535,30.0]
[1672840478575,75.41,13.548,13.535,87.05822556]
[1672840479749,30.0,13.547,13.535,57.05822556]
[1672840480045,75.42,13.546,13.535,57.05822556]
[1672840481211,75.42,13.546,13.535,369.05822556]
[1672840481424,20.0,13.546,13.535,369.05822556]
[1672840481951,20.0,13.546,13.536,30.0]
[1672840482166,20.0,13.547,13.536,30.0]
[1672840482376,20.0,13.548,13.536,30.0]
[1672840483321,20.0,13.548,13.536,87.05822556]
[1672840483635,20.0,13.548,13.536,140.99391222]
[1672840484037,55.39,13.553,13.538,30.0]
[1672840484254,30.0,13.556,13.538,30.0]
[1672840484255,55.38,13.554,13.539,23.2225]
[1672840484581,6.21,13.55,13.54,30.0]
[1672840485207,6.21,13.55,13.54,342.0]
[1672840486669,31.13,13.55,13.54,312.0]
[1672840486874,55.4,13.549,13.54,312.0]
[1672840487082,50.0,13.548,13.525,30.0]
[1672840487296,31.09,13.54,13.519,184.8578]
[1672840487511,75.44,13.539,13.519,184.8578]
[1672840487947,75.44,13.539,13.52,30.0]
[1672840488164,188.3131,13.539,13.52,30.0]
[1672840489418,188.3131,13.539,13.52,79.46301889]
[1672840489633,132.8731,13.539,13.52,126.21750555]
[1672840490134,55.42,13.544,13.529,312.0]
[1672840490351,22.936,13.546,13.529,312.0]
[1672840490352,191.2291,13.546,13.529,312.0]
[1672840490560,191.2291,13.546,13.53,79.46301889]
[1672840491100,6.2,13.55,13.532,30.0]
[1672840491311,6.2,13.55,13.534,30.0]
[1672840491527,24.6,13.55,13.534,30.0]
[1672840491722,24.6,13.55,13.536,30.0]
[1672840492046,24.6,13.55,13.537,20.0]
[1672840492254,24.6,13.55,13.537,72.9453464]
[1672840492574,24.6,13.55,13.537,20.0]
[1672840492886,123.63,13.55,13.537,20.0]
[1672840493090,24.67,13.55,13.535,20.0]
[1672840496279,22.17,13.55,13.535,20.0]
[1672840501406,30.0,13.549,13.535,20.0]
[1672840502236,77.57,13.55,13.535,20.0]
[1672840503405,77.57,13.55,13.531,191.1747]
[1672840503406,176.89,13.55,13.531,191.1747]
[1672840503739,124.4,13.54,13.531,191.1747]
[1672840503927,124.4,13.54,13.514,30.0]
[1672840503928,85.44,13.539,13.514,30.0]
[1672840504138,85.44,13.539,13.516,185.4072]
[1672840504460,55.44,13.539,13.522,30.0]
[1672840505382,20.0,13.538,13.517,30.0]
[1672840505704,30.0,13.536,13.517,30.0]
[1672840505916,55.46,13.535,13.517,30.0]
[1672840508238,55.46,13.536,13.517,30.0]
[1672840508771,55.46,13.536,13.518,21.7811836]
[1672840508960,55.46,13.536,13.519,30.0]
[1672840509175,55.46,13.536,13.519,342.0]
[1672840509385,55.46,13.536,13.52,21.7811836]
[1672840509615,30.0,13.535,13.52,21.7811836]
[1672840509825,55.47,13.534,13.52,21.7811836]
[1672840510036,55.46,13.536,13.521,30.0]
[1672840510440,30.0,13.549,13.522,21.7811836]
[1672840510762,138.9715,13.545,13.523,164.6177]
[1672840511085,30.0,13.544,13.524,21.7811836]
[1672840511292,55.43,13.543,13.524,21.7811836]
[1672840511505,55.43,13.543,13.525,50.0]
[1672840511910,55.43,13.543,13.526,21.7811836]
[1672840512130,55.43,13.543,13.528,30.0]
[1672840512747,55.43,13.543,13.529,21.7811836]
[1672840514040,55.42,13.544,13.53,30.0]
[1672840514423,55.42,13.544,13.531,21.7811836]
[1672840515709,85.42,13.544,13.531,21.7811836]
[1672840515923,55.42,13.544,13.531,21.7811836]
[1672840517070,55.42,13.544,13.532,20.0]
[1672840517287,55.41,13.547,13.532,20.0]
[1672840517488,55.41,13.547,13.533,21.7811836]
[1672840517696,55.41,13.547,13.534,20.0]
[1672840518239,55.41,13.547,13.535,21.7811836]
[1672840518757,55.41,13.547,13.536,20.0]
[1672840519290,55.41,13.547,13.537,21.7811836]
[1672840519600,54.91,13.547,13.538,20.0]
[1672840520750,54.91,13.547,13.538,41.7811836]
[1672840522539,30.0,13.546,13.538,41.7811836]
[1672840522726,30.0,13.546,13.512,30.0]
[1672840522727,55.42,13.545,13.52,24.0169]
[1672840522943,30.0,13.544,13.537,21.7811836]
[1672840523904,30.0,13.544,13.528,53.2805]
[1672840524098,55.43,13.543,13.533,21.7811836]
[1672840524515,30.0,13.542,13.533,21.7811836]
[1672840524730,24.6,13.54,13.533,21.7811836]
[1672840524942,24.6,13.54,13.528,23.2805]
[1672840525162,24.6,13.54,13.531,21.7811836]
[1672840525575,30.0,13.539,13.531,21.7811836]
[1672840525798,30.0,13.539,13.528,23.2805]
[1672840525992,30.0,13.539,13.529,45.8688836]
[1672840526535,30.0,13.539,13.529,24.0877]
[1672840526727,55.45,13.538,13.514,30.0]
[1672840526935,20.0,13.537,13.525,21.7811836]
[1672840527144,85.46,13.536,13.525,21.7811836]
[1672840527579,30.0,13.535,13.518,159.6195]
[1672840527791,30.0,13.533,13.52,21.7811836]
[1672840529247,55.47,13.532,13.52,21.7811836]
[1672840529456,30.0,13.531,13.52,21.7811836]
[1672840530511,30.0,13.529,13.52,21.7811836]
[1672840530926,55.48,13.53,13.52,21.7811836]
[1672840531458,30.0,13.531,13.52,21.7811836]
[1672840532098,55.47,13.532,13.52,21.7811836]
[1672840533028,55.47,13.532,13.519,30.0]
[1672840533258,55.47,13.532,13.52,21.7811836]
[1672840534106,30.0,13.531,13.52,21.7811836]
[1672840534429,55.47,13.532,13.52,21.7811836]
[1672840534742,55.47,13.534,13.52,21.7811836]
[1672840535575,30.0,13.533,13.52,21.7811836]
[1672840535803,55.47,13.532,13.52,21.7811836]
[1672840540728,55.47,13.532,13.521,30.0]
[1672840540938,55.47,13.534,13.521,30.0]
[1672840541138,55.47,13.534,13.522,21.7811836]
[1672840541574,30.0,13.533,13.522,21.7811836]
[1672840541785,55.47,13.532,13.522,21.7811836]
[1672840542840,30.0,13.531,13.522,21.7811836]
[1672840543662,30.0,13.531,13.52,312.0]
[1672840544106,30.0,13.529,13.518,181.4006836]
[1672840545054,30.0,13.529,13.518,159.6195]
[1672840545244,30.0,13.527,13.506,30.0]
[1672840545453,75.5,13.526,13.515,21.7811836]
[1672840545657,30.0,13.525,13.515,21.7811836]
[1672840545868,55.51,13.524,13.515,21.7811836]
[1672840546079,30.0,13.523,13.515,21.7811836]
[1672840546294,30.0,13.523,13.509,22.8406]
[1672840546525,30.0,13.523,13.509,44.6217836]
[1672840547127,30.0,13.523,13.509,356.6217836]
[1672840547454,55.51,13.522,13.509,356.6217836]
[1672840547989,30.0,13.521,13.509,356.6217836]
[1672840548194,30.0,13.521,13.509,44.6217836]
[1672840551144,30.0,13.521,13.509,356.6217836]
[1672840553551,24.83,13.52,13.509,356.6217836]
[1672840555872,30.0,13.521,13.509,356.6217836]
[1672840558172,85.51,13.523,13.509,356.6217836]
[1672840558598,85.51,13.523,13.51,30.0]
[1672840559013,85.51,13.523,13.511,21.7811836]
[1672840567115,24.83,13.52,13.511,21.7811836]
[1672840567332,30.0,13.519,13.511,21.7811836]
[1672840568379,30.0,13.519,13.511,333.7811836]
[1672840569021,30.0,13.519,13.512,21.7811836]
[1672840570490,54.83,13.52,13.512,21.7811836]
[1672840571214,24.83,13.52,13.512,21.7811836]
[1672840571425,24.83,13.52,13.511,312.0]
[1672840571965,6.18,13.52,13.511,312.0]
[1672840572170,6.18,13.52,13.509,22.8406]
[1672840572382,6.18,13.52,13.51,30.0]
[1672840573547,6.18,13.52,13.509,22.8406]
[1672840575832,6.18,13.52,13.504,366.4078]
[1672840575833,31.06,13.52,13.487,30.0]
[1672840576045,31.06,13.52,13.499,48.3459]
[1672840576046,6.23,13.51,13.499,48.3459]
[1672840576586,55.57,13.509,13.499,48.3459]
[1672840576800,6.23,13.51,13.499,70.1270836]
[1672840577843,6.23,13.51,13.499,48.3459]
[1672840578481,30.0,13.509,13.499,48.3459]
[1672840581201,94.99206005,13.508,13.489,24.2243]
[1672840581413,30.0,13.507,13.491,47.8267]
[1672840581740,30.0,13.505,13.491,47.8267]
[1672840583220,30.0,13.505,13.491,359.8267]
[1672840585111,30.0,13.505,13.491,47.8267]
[1672840585517,61.83,13.51,13.492,71.7811836]
[1672840585733,6.27,13.51,13.492,109.45902931]
[1672840585943,6.27,13.51,13.493,59.45902931]
[1672840586162,6.27,13.51,13.494,20.0]
[1672840586372,6.27,13.51,13.494,183.8076836]
[1672840586586,6.27,13.51,13.495,51.7811836]
[1672840586785,6.27,13.51,13.497,30.0]
[1672840587215,6.27,13.51,13.498,41.7811836]
[1672840587638,6.27,13.51,13.499,51.7811836]
[1672840587956,6.27,13.51,13.5,21.7811836]
[1672840597621,6.27,13.51,13.499,30.0]
[1672840597829,6.27,13.51,13.498,332.0]
[1672840598693,6.27,13.51,13.499,21.7811836]
[1672840598905,6.27,13.51,13.499,51.7811836]
[1672840599309,6.27,13.51,13.5,21.7811836]
[1672840599521,163.7573,13.512,13.5,21.7811836]
[1672840600582,6.23,13.51,13.5,21.7811836]
[1672840603011,163.7573,13.512,13.5,21.7811836]
[1672840606583,163.7573,13.512,13.501,30.0]
[1672840606995,163.7573,13.512,13.502,21.7811836]
[1672840607200,116.609,13.512,13.502,21.7811836]
[1672840610142,172.169,13.512,13.502,21.7811836]
[1672840610886,30.0,13.511,13.502,21.7811836]
[1672840611100,172.169,13.512,13.502,21.7811836]
[1672840611825,30.0,13.511,13.502,21.7811836]
[1672840613302,172.169,13.512,13.502,21.7811836]
[1672840614043,172.169,13.512,13.502,333.7811836]
[1672840614469,172.169,13.512,13.503,21.7811836]
[1672840614871,55.56,13.512,13.503,21.7811836]
[1672840615288,30.0,13.511,13.503,21.7811836]
[1672840615528,6.23,13.51,13.503,21.7811836]
[1672840618677,6.23,13.51,13.5,24.042]
[1672840618865,6.23,13.51,13.5,336.042]
[1672840619930,6.23,13.51,13.5,24.042]
[1672840620870,30.0,13.508,13.5,24.042]
[1672840622663,30.0,13.508,13.494,117.7977]
[1672840622664,30.0,13.506,13.494,117.7977]
[1672840622864,30.0,13.504,13.489,46.6729]
[1672840623706,148.0379,13.504,13.489,46.6729]
[1672840624352,148.0379,13.504,13.49,21.7811836]
[1672840627003,3.12,13.5,13.49,333.7811836]
[1672840627376,3.12,13.5,13.491,21.7811836]
[1672840627915,30.0,13.502,13.491,21.7811836]
[1672840630657,3.12,13.5,13.491,21.7811836]
[1672840636209,3.12,13.5,13.491,333.7811836]
[1672840636630,3.12,13.5,13.492,21.7811836]
[1672840639574,3.12,13.5,13.492,51.7811836]
[1672840639788,3.12,13.5,13.492,21.7811836]
[1672840642948,3.12,13.5,13.492,333.7811836]
[1672840644413,3.12,13.5,13.492,21.7811836]
[1672840647387,3.12,13.5,13.492,333.7811836]
[1672840651591,3.12,13.5,13.492,312.0]
[1672840651818,3.12,13.5,13.489,46.6729]
[1672840652118,3.12,13.5,13.489,68.4540836]
[1672840654853,3.12,13.5,13.49,30.0]
[1672840655798,24.1667,13.502,13.491,21.7811836]
[1672840658848,24.1667,13.502,13.491,333.7811836]
[1672840666213,3.12,13.5,13.491,333.7811836]
[1672840666809,15.61,13.5,13.491,312.0]
[1672840667024,15.61,13.5,13.489,46.6729]
[1672840671562,30.0,13.499,13.489,46.6729]
[1672840675773,15.61,13.5,13.49,30.0]
[1672840676082,15.61,13.5,13.489,68.4540836]
[1672840679232,71.21,13.5,13.489,68.4540836]
[1672840679437,30.0,13.499,13.489,68.4540836]
[1672840684083,3.11,13.5,13.489,68.4540836]
[1672840684281,3.1,13.51,13.49,20.0]
[1672840684494,52.9675127,13.51,13.491,30.0]
[1672840684714,18.92930928,13.509,13.492,159.4392]
[1672840684909,30.0,13.508,13.492,159.4392]
[1672840685334,30.0,13.508,13.492,139.4392]
[1672840685546,3.12,13.5,13.492,139.4392]
[1672840690577,24.7139,13.503,13.493,30.0]
[1672840691335,24.7139,13.503,13.492,139.4392]
[1672840693227,24.7139,13.503,13.493,30.0]
[1672840695771,18.54768635,13.507,13.493,30.0]
[1672840695987,3.12,13.51,13.495,30.0]
[1672840696193,3.12,13.51,13.496,44.4988]
[1672840696510,3.12,13.51,13.497,29.92443924]
[1672840696714,3.12,13.51,13.497,51.70562284]
[1672840696920,3.12,13.51,13.498,20.0]
[1672840697135,3.12,13.51,13.499,24.4988]
[1672840697760,3.12,13.51,13.5,30.0]
[1672840698180,3.12,13.51,13.499,54.4988]
[1672840698394,3.12,13.51,13.499,24.4988]
[1672840701328,61.77,13.51,13.499,24.4988]
[1672840701540,30.0,13.509,13.499,24.4988]
[1672840704500,55.57,13.508,13.494,24.0305]
[1672840704816,30.0,13.507,13.494,24.0305]
[1672840705020,30.0,13.505,13.494,24.0305]
[1672840708070,85.58,13.506,13.495,21.7811836]
[1672840708265,30.0,13.506,13.495,21.7811836]
[1672840711016,30.0,13.506,13.494,24.0305]
[1672840712471,30.0,13.506,13.495,21.7811836]
[1672840715736,30.0,13.506,13.494,24.0305]
[1672840717638,30.0,13.504,13.494,24.0305]
[1672840718037,55.59,13.503,13.494,24.0305]
[1672840718360,30.0,13.502,13.494,24.0305]
[1672840722377,3.13,13.5,13.494,24.0305]
[1672840725312,30.0,13.502,13.494,24.0305]
[1672840727177,85.59,13.504,13.494,24.0305]
[1672840727394,79.0766,13.505,13.494,24.0305]
[1672840728353,30.0,13.504,13.494,24.0305]
[1672840732460,3.13,13.5,13.494,24.0305]
[1672840734552,3.01847604,13.5,13.494,24.0305]
[1672840739515,33.01847604,13.5,13.494,24.0305]
[1672840753916,3.01847604,13.5,13.494,24.0305]
[1672840755160,15.49847604,13.5,13.494,24.0305]
[1672840755491,3.11,13.5,13.494,24.0305]
[1672840769811,55.59,13.504,13.494,24.0305]
[1672840770023,23.4966,13.505,13.494,24.0305]
[1672840771798,23.4966,13.505,13.495,30.0]
[1672840773274,23.4966,13.505,13.495,51.7811836]
[1672840774331,3.11,13.51,13.496,20.0]
[1672840774648,3.11,13.51,13.498,30.0]
[1672840775152,3.11,13.51,13.497,46.1167836]
[1672840775365,3.11,13.51,13.499,30.0]
[1672840775816,55.56,13.512,13.499,30.0]
[1672840775993,55.55,13.514,13.5,24.3356]
[1672840776324,55.55,13.514,13.5,143.0934]
[1672840777370,30.0,13.513,13.5,143.0934]
[1672840777786,55.56,13.512,13.5,143.0934]
[1672840778733,30.0,13.511,13.5,143.0934]
[1672840778944,55.56,13.512,13.5,143.0934]
[1672840779151,30.0,13.513,13.5,143.0934]
[1672840782105,55.55,13.514,13.501,30.0]
[1672840782720,55.54,13.515,13.501,30.0]
[1672840782944,55.54,13.515,13.502,21.7811836]
[1672840783145,111.50498823,13.516,13.502,21.7811836]
[1672840783578,111.50498823,13.516,13.503,24.5417]
[1672840784644,111.50498823,13.516,13.504,30.0]
[1672840785166,111.50498823,13.516,13.503,24.5417]
[1672840785685,30.0,13.515,13.503,24.5417]
[1672840786425,30.0,13.515,13.503,46.3228836]
[1672840788004,30.0,13.515,13.503,24.5417]
[1672840792309,30.0,13.513,13.503,24.5417]
[1672840801667,85.54,13.515,13.503,24.5417]
[1672840801880,30.0,13.515,13.503,24.5417]
[1672840802082,79.3353,13.516,13.503,24.5417]
[1672840802293,23.7953,13.516,13.504,30.0]
[1672840802834,55.54,13.515,13.504,30.0]
[1672840803028,109.3353,13.516,13.504,30.0]
[1672840803467,109.3353,13.516,13.503,46.3228836]
[1672840804175,30.0,13.515,13.503,46.3228836]
[1672840804419,30.0,13.515,13.503,24.5417]
[1672840804731,15.61,13.51,13.503,24.5417]
[1672840804920,55.57,13.509,13.503,24.5417]
[1672840805124,20.0,13.508,13.503,24.5417]
[1672840805330,30.0,13.506,13.503,24.5417]
[1672840805555,30.0,13.506,13.5,118.7578]
[1672840805777,30.0,13.506,13.475,30.0]
[1672840805987,52.8796,13.506,13.488,159.3246]
[1672840807756,55.58,13.505,13.488,159.3246]
[1672840808088,30.0,13.504,13.488,159.3246]
[1672840809032,55.59,13.503,13.488,159.3246]
[1672840809230,30.0,13.502,13.488,159.3246]
[1672840810069,48.53338503,13.502,13.488,159.3246]
[1672840811125,30.0,13.502,13.488,159.3246]
[1672840815222,30.0,13.502,13.489,30.0]
[1672840815642,30.0,13.502,13.488,159.3246]
[1672840817220,22.8796,13.506,13.489,30.0]
[1672840817428,22.8796,13.506,13.489,51.7811836]
[1672840817760,22.8796,13.506,13.49,21.7811836]
[1672840818169,22.8796,13.506,13.491,30.0]
[1672840818382,22.8796,13.506,13.492,23.1496]
[1672840818598,6.29,13.51,13.493,20.0]
[1672840818810,55.55,13.514,13.494,119.2181]
[1672840819021,108.8847,13.515,13.495,20.0]
[1672840819228,108.8847,13.515,13.497,30.0]
[1672840819424,108.8847,13.515,13.498,43.2506]
[1672840819848,108.8847,13.515,13.5,30.0]
[1672840820385,108.8847,13.515,13.501,21.7811836]
[1672840821227,30.0,13.514,13.501,21.7811836]
[1672840827542,30.0,13.514,13.501,51.7811836]
[1672840827966,30.0,13.514,13.502,21.7811836]
[1672840828284,108.8847,13.515,13.502,21.7811836]
[1672840829947,55.51,13.522,13.503,38.63499476]
[1672840830153,37.3875127,13.529,13.504,96.4678]
[1672840830154,133.7762,13.526,13.504,96.4678]
[1672840830368,133.7762,13.526,13.504,142.4602836]
[1672840830580,133.7762,13.526,13.505,21.7811836]
[1672840830786,133.7762,13.526,13.506,20.0]
[1672840830998,133.7762,13.526,13.506,129.6929]
[1672840831222,133.7762,13.526,13.507,51.7811836]
[1672840831437,133.7762,13.526,13.508,23.8288]
[1672840831625,133.7762,13.526,13.508,45.6099836]
[1672840831848,133.7762,13.526,13.509,51.7811836]
[1672840832176,133.7762,13.526,13.51,21.7811836]
[1672840832386,133.7762,13.526,13.511,23.8288]
[1672840832792,133.7762,13.526,13.511,45.6099836]
[1672840837026,133.7762,13.526,13.511,23.8288]
[1672840837237,133.7762,13.526,13.511,45.6099836]
[1672840837870,133.7762,13.526,13.511,23.8288]
[1672840838406,133.7762,13.526,13.511,45.6099836]
[1672840843012,133.7762,13.526,13.511,357.6099836]
[1672840843963,103.7762,13.526,13.512,30.0]
[1672840844283,103.7762,13.526,13.514,30.0]
[1672840844284,55.5,13.526,13.514,30.0]
[1672840844494,30.0,13.532,13.515,20.0]
[1672840844711,55.48,13.531,13.515,41.7811836]
[1672840845019,6.2,13.53,13.516,98.4678836]
[1672840845207,55.49,13.529,13.516,98.4678836]
[1672840845420,30.0,13.528,13.517,21.7811836]
[1672840845628,30.0,13.528,13.518,20.0]
[1672840846073,20.0,13.527,13.513,108.1933]
[1672840846274,55.5,13.526,13.513,108.1933]
[1672840846473,30.0,13.525,13.513,108.1933]
[1672840847221,55.51,13.524,13.513,420.1933]
[1672840847844,55.5,13.525,13.513,420.1933]
[1672840848275,85.5,13.526,13.513,420.1933]
[1672840848682,55.5,13.526,13.513,420.1933]
[1672840848886,75.49,13.527,13.514,30.0]
[1672840849308,75.49,13.527,13.514,51.7811836]
[1672840849527,20.0,13.527,13.514,51.7811836]
[1672840850688,20.0,13.527,13.514,21.7811836]
[1672840853731,20.0,13.527,13.514,51.7811836]
[1672840856999,85.49,13.528,13.514,51.7811836]
[1672840857000,55.49,13.528,13.514,51.7811836]
[1672840857211,91.69,13.53,13.516,30.0]
[1672840857632,36.21,13.53,13.517,41.7811836]
[1672840857844,6.21,13.53,13.518,30.0]
[1672840858054,6.21,13.53,13.518,75.0229836]
[1672840858262,6.21,13.53,13.519,21.7811836]
[1672840861632,6.21,13.53,13.518,23.2418]
[1672840863314,55.49,13.529,13.518,23.2418]
[1672840863632,30.0,13.528,13.518,23.2418]
[1672840864367,30.0,13.528,13.514,23.1856]
[1672840864581,6.2,13.52,13.514,23.1856]
[1672840870024,53.4669,13.524,13.514,23.1856]
[1672840873505,23.4669,13.524,13.514,335.1856]
[1672840873936,6.22,13.52,13.514,335.1856]
[1672840874687,6.22,13.52,13.514,23.1856]
[1672840877080,30.0,13.523,13.514,23.1856]
[1672840877292,23.4669,13.524,13.514,23.1856]
[1672840877835,23.4669,13.524,13.515,30.0]
[1672840878251,23.4669,13.524,13.514,356.9667836]
[1672840878650,23.4669,13.524,13.514,44.9667836]
[1672840880458,23.4669,13.524,13.514,23.1856]
[1672840881703,23.4669,13.524,13.514,335.1856]
[1672840884770,23.4669,13.524,13.514,44.9667836]
[1672840885717,23.4669,13.524,13.515,30.0]
[1672840885920,23.4669,13.524,13.514,44.9667836]
[1672840886241,23.4669,13.524,13.515,51.7811836]
[1672840886980,23.4669,13.524,13.515,21.7811836]
[1672840888759,23.4669,13.524,13.514,23.1856]
[1672840888760,30.0,13.523,13.514,23.1856]
[1672840889192,6.23,13.52,13.514,23.1856]
[1672840889900,6.23,13.52,13.483,413.27340629]
[1672840889901,31.08,13.52,13.483,413.27340629]
[1672840890114,6.22,13.51,13.491,23.7756]
[1672840890324,6.22,13.51,13.492,70.5794]
[1672840890535,6.22,13.51,13.492,92.3605836]
[1672840890853,6.22,13.51,13.493,21.7811836]
[1672840891072,6.23,13.51,13.493,138.0729836]
[1672840891477,6.23,13.51,13.494,21.7811836]
[1672840891689,6.23,13.51,13.494,51.7811836]
[1672840892004,6.23,13.51,13.495,21.7811836]
[1672840892217,6.23,13.51,13.496,20.0]
[1672840892643,6.23,13.51,13.497,21.7811836]
[1672840892858,6.23,13.51,13.498,20.0]
[1672840893176,6.23,13.51,13.497,334.9504]
[1672840893619,6.23,13.51,13.498,21.7811836]
[1672840894215,6.23,13.51,13.498,46.2096836]
[1672840894426,30.0,13.512,13.498,46.2096836]
[1672840895282,6.23,13.51,13.498,46.2096836]
[1672840896962,6.23,13.51,13.498,358.2096836]
[1672840897608,6.23,13.51,13.498,24.4285]
[1672840897795,85.57,13.509,13.493,116.2918]
[1672840898129,30.0,13.507,13.493,116.2918]
[1672840898545,30.0,13.505,13.493,116.2918]
[1672840899596,30.0,13.505,13.494,21.7811836]
[1672840902743,30.0,13.505,13.493,116.2918]
[1672840904869,6.21,13.5,13.493,116.2918]
[1672840905165,6.21,13.5,13.492,24.7079]
[1672840905777,6.21,13.5,13.493,312.0]
[1672840906211,31.13,13.5,13.493,312.0]
[1672840906416,31.14,13.5,13.493,312.0]
[1672840906630,30.0,13.499,13.492,24.7079]
[1672840909789,0.07244233,13.492,13.484,312.0]
[1672840910214,0.07244233,13.492,13.484,333.7811836]
[1672840910857,0.07244233,13.492,13.484,21.7811836]
[1672840913789,0.07244233,13.492,13.481,47.8764]
[1672840913790,25.04,13.49,13.481,359.8764]
[1672840914003,25.04,13.49,13.482,21.7811836]
[1672840914864,25.04,13.49,13.482,21.68048997]
[1672840917584,125.2,13.49,13.481,47.8764]
[1672840917894,30.0,13.489,13.481,47.8764]
[1672840919674,30.0,13.489,13.481,69.6575836]
[1672840920102,125.1,13.49,13.481,69.6575836]
[1672840921898,30.0,13.489,13.481,69.6575836]
[1672840922419,30.0,13.489,13.481,47.8764]
[1672840927365,72.63313153,13.489,13.481,47.8764]
[1672840927565,20.0,13.488,13.457,30.0]
[1672840927773,125.37,13.48,13.471,158.9452]
[1672840927983,85.69,13.479,13.471,158.9452]
[1672840930198,25.03,13.48,13.471,470.9452]
[1672840930405,24.2199,13.485,13.472,21.7811836]
[1672840931161,30.0,13.484,13.472,21.7811836]
[1672840932079,24.2199,13.485,13.473,20.0]
[1672840932399,24.2199,13.485,13.474,51.7811836]
[1672840932599,24.2199,13.485,13.475,20.0]
[1672840932809,30.0,13.488,13.475,41.7811836]
[1672840933040,30.0,13.488,13.476,21.7811836]
[1672840936079,30.0,13.486,13.471,158.9452]
[1672840936395,30.0,13.484,13.471,158.9452]
[1672840937851,25.04,13.48,13.471,158.9452]
[1672840938074,25.04,13.48,13.471,49.2992]
[1672840940399,25.04,13.48,13.471,361.2992]
[1672840942184,25.04,13.48,13.471,49.2992]
[1672840943551,30.0,13.479,13.471,49.2992]
[1672840949520,85.69,13.479,13.471,49.2992]
[1672840951006,85.69,13.479,13.467,16.81025903]
[1672840951194,30.0,13.477,13.467,16.81025903]
[1672840951406,75.7,13.476,13.467,16.81025903]
[1672840951634,30.0,13.475,13.467,16.81025903]
[1672840952478,30.0,13.473,13.467,16.81025903]
[1672840953742,30.0,13.471,13.467,16.81025903]
[1672840963924,30.0,13.475,13.467,16.81025903]
[1672840966459,125.08,13.48,13.468,30.0]
[1672840966684,125.08,13.48,13.467,16.81025903]
[1672840966685,24.92,13.48,13.467,16.81025903]
[1672840966891,24.92,13.48,13.468,21.7811836]
[1672840968360,24.92,13.48,13.467,153.43775903]
[1672840969311,24.92,13.48,13.467,175.21894263]
[1672840971106,24.92,13.48,13.467,153.43775903]
[1672840971946,30.0,13.482,13.468,51.7811836]